fUSD/lending_fUSD_20260612
["ID","MTS","AMOUNT","RATE_DAILY","PERIOD"]
[424917420,1781271053000,-209.40437684,0.00024215,2]
[424917421,1781271053000,-578.20924308,0.00024215,2]
[424917425,1781271053000,-200.0,0.00024215,2]
[424917413,1781271053000,-1107.63007,0.00024215,2]
[424917419,1781271053000,-151.94035637,0.00024215,2]
[424917422,1781271053000,-1235.18214925,0.00024215,2]
[424917397,1781271053000,-568.0,0.00024,2]
[424917405,1781271053000,-827.0,0.00024,2]
[424917428,1781271053000,-209.40437684,0.00024215,2]
[424917398,1781271053000,-978.0,0.00024,2]
[424917395,1781271053000,-252.0,0.00024,2]
[424917396,1781271053000,-303.0,0.00024,2]
[424917399,1781271053000,-187.0,0.00024,2]
[424917401,1781271053000,-383.0,0.00024,2]
[424917402,1781271053000,-243.0,0.00024,2]
[424917404,1781271053000,-187.0,0.00024,2]
[424917403,1781271053000,-807.0,0.00024,2]
[424917400,1781271053000,-2328.0,0.00024,2]
[424917409,1781271053000,-505.0,0.000242,7]
[424917408,1781271053000,-1229.67,0.00024174,2]
[424917407,1781271053000,-150.0,0.00024164,2]
[424917406,1781271053000,-500.0,0.00024164,2]
[424917410,1781271053000,-3768.33877166,0.0002421,2]
[424917412,1781271053000,-1068.11,0.00024215,2]
[424917427,1781271053000,-500.0,0.00024215,2]
[424917444,1781271053000,-500.0,0.00024215,2]
[424917432,1781271053000,-151.0,0.00024215,2]
[424917451,1781271053000,-500.0,0.00024215,2]
[424917453,1781271053000,-500.0,0.00024215,2]
[424917454,1781271053000,-152.0,0.00024215,2]
[424917452,1781271053000,-152.0,0.00024215,2]
[424917456,1781271053000,-500.0,0.00024215,2]
[424917455,1781271053000,-152.0,0.00024215,2]
[424917449,1781271053000,-500.0,0.00024215,2]
[424917457,1781271053000,-152.0,0.00024215,2]
[424917458,1781271053000,-500.0,0.00024215,2]
[424917434,1781271053000,-151.0,0.00024215,2]
[424917461,1781271053000,-152.0,0.00024215,2]
[424917463,1781271053000,-271.37525311,0.0002427,2]
[424917462,1781271053000,-180.23680031,0.00024225,2]
[424917464,1781271053000,-151.0,0.0002427,2]
[424917459,1781271053000,-152.0,0.00024215,2]
[424917450,1781271053000,-152.0,0.00024215,2]
[424917460,1781271053000,-500.0,0.00024215,2]
[424917447,1781271053000,-152.0,0.00024215,2]
[424917448,1781271053000,-192.33143538,0.00024215,2]
[424917426,1781271053000,-1328.27659266,0.00024215,2]
[424917433,1781271053000,-500.0,0.00024215,2]
[424917430,1781271053000,-4853.7438341,0.00024215,2]
[424917436,1781271053000,-152.0,0.00024215,2]
[424917435,1781271053000,-160.0,0.00024215,2]
[424917437,1781271053000,-1428.38747117,0.00024215,2]
[424917429,1781271053000,-152.0,0.00024215,2]
[424917440,1781271053000,-209.40437684,0.00024215,2]
[424917438,1781271053000,-693.39197629,0.00024215,2]
[424917441,1781271053000,-152.0,0.00024215,2]
[424917442,1781271053000,-1481.2378076,0.00024215,2]
[424917443,1781271053000,-151.0,0.00024215,2]
[424917445,1781271053000,-1536.04360648,0.00024215,2]
[424917439,1781271053000,-500.0,0.00024215,2]
[424917446,1781271053000,-500.0,0.00024215,2]
[424917479,1781271054000,-151.0,0.0002454,2]
[424917480,1781271054000,-151.0,0.0002454,2]
[424917481,1781271054000,-152.0,0.0002454,2]
[424917483,1781271054000,-152.0,0.0002454,2]
[424917485,1781271054000,-152.0,0.0002454,2]
[424917484,1781271054000,-152.0,0.0002454,2]
[424917487,1781271054000,-152.0,0.0002454,2]
[424917486,1781271054000,-152.0,0.0002454,2]
[424917478,1781271054000,-152.0,0.0002454,2]
[424917482,1781271054000,-152.0,0.0002454,2]
[424917474,1781271054000,-151.0,0.0002449,2]
[424917470,1781271054000,-271.37525311,0.00024435,2]
[424917475,1781271054000,-152.0,0.0002454,2]
[424917472,1781271054000,-2781.82699784,0.00024466,2]
[424917477,1781271054000,-296.48897898,0.0002454,2]
[424917473,1781271054000,-271.37525311,0.0002449,2]
[424917471,1781271054000,-151.0,0.00024435,2]
[424917469,1781271054000,-151.0,0.0002438,2]
[424917467,1781271054000,-151.0,0.00024325,2]
[424917468,1781271054000,-271.37525311,0.0002438,2]
[424917466,1781271054000,-271.37525311,0.00024325,2]
[424917465,1781271054000,-1088.1,0.00024324,2]
[424917489,1781271054000,-152.0,0.0002454,2]
[424917476,1781271054000,-152.0,0.0002454,2]
[424917490,1781271054000,-152.0,0.0002454,2]
[424917501,1781271054000,-151.0,0.000246,2]
[424917491,1781271054000,-152.0,0.0002454,2]
[424917515,1781271054000,-291.216817,0.00024658,2]
[424917514,1781271054000,-291.216817,0.00024658,2]
[424917512,1781271054000,-291.216817,0.00024658,2]
[424917511,1781271054000,-291.216817,0.00024658,2]
[424917510,1781271054000,-291.216817,0.00024658,2]
[424917513,1781271054000,-291.216817,0.00024658,2]
[424917509,1781271054000,-291.216817,0.00024658,2]
[424917506,1781271054000,-291.216817,0.00024658,2]
[424917504,1781271054000,-151.0,0.00024655,2]
[424917508,1781271054000,-291.216817,0.00024658,2]
[424917507,1781271054000,-291.216817,0.00024658,2]
[424917505,1781271054000,-3009.32,0.00024658,2]
[424917488,1781271054000,-152.0,0.0002454,2]
[424917516,1781271054000,-291.216817,0.00024658,2]
[424917495,1781271054000,-152.0,0.0002454,2]
[424917497,1781271054000,-271.37525311,0.00024545,2]
[424917492,1781271054000,-152.0,0.0002454,2]
[424917493,1781271054000,-152.0,0.0002454,2]
[424917494,1781271054000,-152.0,0.0002454,2]
[424917499,1781271054000,-409.514864,0.00024587,7]
[424917498,1781271054000,-151.0,0.00024545,2]
[424917500,1781271054000,-271.37525311,0.000246,2]
[424917503,1781271054000,-271.37525311,0.00024655,2]
[424917496,1781271054000,-152.0,0.0002454,2]
[424917502,1781271054000,-425.00166298,0.00024602,2]
[424917541,1781271055000,-165.598954,0.00024658,2]
[424917535,1781271055000,-165.598949,0.00024658,2]
[424917538,1781271055000,-165.598949,0.00024658,2]
[424917536,1781271055000,-165.598949,0.00024658,2]
[424917537,1781271055000,-165.598949,0.00024658,2]
[424917539,1781271055000,-165.598949,0.00024658,2]
[424917548,1781271055000,-194.215484,0.00024658,2]
[424917540,1781271055000,-165.598949,0.00024658,2]
[424917545,1781271055000,-194.215484,0.00024658,2]
[424917544,1781271055000,-194.215484,0.00024658,2]
[424917534,1781271055000,-165.598949,0.00024658,2]
[424917547,1781271055000,-570.135173,0.00024658,2]
[424917543,1781271055000,-194.215484,0.00024658,2]
[424917532,1781271055000,-165.598949,0.00024658,2]
[424917526,1781271055000,-165.598949,0.00024658,2]
[424917533,1781271055000,-165.598949,0.00024658,2]
[424917519,1781271055000,-291.216817,0.00024658,2]
[424917517,1781271055000,-291.216817,0.00024658,2]
[424917518,1781271055000,-291.216817,0.00024658,2]
[424917520,1781271055000,-291.216817,0.00024658,2]
[424917522,1781271055000,-165.598949,0.00024658,2]
[424917524,1781271055000,-165.598949,0.00024658,2]
[424917530,1781271055000,-165.598949,0.00024658,2]
[424917521,1781271055000,-291.216817,0.00024658,2]
[424917525,1781271055000,-165.598949,0.00024658,2]
[424917527,1781271055000,-165.598949,0.00024658,2]
[424917546,1781271055000,-194.215484,0.00024658,2]
[424917529,1781271055000,-165.598949,0.00024658,2]
[424917528,1781271055000,-165.598949,0.00024658,2]
[424917531,1781271055000,-165.598949,0.00024658,2]
[424917523,1781271055000,-165.598949,0.00024658,2]
[424917549,1781271055000,-570.135173,0.00024658,2]
[424917542,1781271055000,-1000.0,0.00024658,2]
[424917553,1781271055000,-570.135173,0.00024658,2]
[424917569,1781271055000,-194.215484,0.00024658,2]
[424917572,1781271055000,-570.135173,0.00024658,2]
[424917575,1781271055000,-194.215484,0.00024658,2]
[424917577,1781271055000,-194.215484,0.00024658,2]
[424917576,1781271055000,-570.135173,0.00024658,2]
[424917571,1781271055000,-194.215484,0.00024658,2]
[424917570,1781271055000,-570.135173,0.00024658,2]
[424917573,1781271055000,-194.215484,0.00024658,2]
[424917579,1781271055000,-570.135173,0.00024658,2]
[424917574,1781271055000,-570.135173,0.00024658,2]
[424917580,1781271055000,-570.135173,0.00024658,2]
[424917582,1781271055000,-570.135167,0.00024658,2]
[424917550,1781271055000,-194.215484,0.00024658,2]
[424917583,1781271055000,-151.91799802,0.00024658,2]
[424917578,1781271055000,-194.215492,0.00024658,2]
[424917565,1781271055000,-570.135173,0.00024658,2]
[424917581,1781271055000,-570.135173,0.00024658,2]
[424917564,1781271055000,-194.215484,0.00024658,2]
[424917567,1781271055000,-570.135173,0.00024658,2]
[424917554,1781271055000,-194.215484,0.00024658,2]
[424917557,1781271055000,-570.135173,0.00024658,2]
[424917555,1781271055000,-570.135173,0.00024658,2]
[424917552,1781271055000,-194.215484,0.00024658,2]
[424917556,1781271055000,-194.215484,0.00024658,2]
[424917559,1781271055000,-570.135173,0.00024658,2]
[424917551,1781271055000,-570.135173,0.00024658,2]
[424917561,1781271055000,-570.135173,0.00024658,2]
[424917560,1781271055000,-194.215484,0.00024658,2]
[424917566,1781271055000,-194.215484,0.00024658,2]
[424917562,1781271055000,-194.215484,0.00024658,2]
[424917568,1781271055000,-570.135173,0.00024658,2]
[424917558,1781271055000,-194.215484,0.00024658,2]
[424917563,1781271055000,-570.135173,0.00024658,2]
[424917601,1781271056000,-151.0,0.00024997,7]
[424917599,1781271056000,-157.14285714,0.00024879,2]
[424917603,1781271056000,-7252.36522364,0.00025,2]
[424917604,1781271056000,-4876.5432128,0.00025,2]
[424917606,1781271056000,-151.0,0.00025,2]
[424917610,1781271056000,-391.59594428,0.00025,2]
[424917602,1781271056000,-8088.80301526,0.00025,7]
[424917608,1781271056000,-151.0,0.00025,2]
[424917607,1781271056000,-151.0,0.00025,2]
[424917609,1781271056000,-282.135329,0.00025,2]
[424917611,1781271056000,-151.0,0.00025,2]
[424917605,1781271056000,-1243253.25332641,0.00025,2]
[424917600,1781271056000,-389.68,0.000249,7]
[424917597,1781271056000,-151.0,0.00024765,2]
[424917590,1781271056000,-151.94035637,0.00024763,2]
[424917594,1781271056000,-217.15233878,0.00024763,2]
[424917593,1781271056000,-200.0,0.00024763,2]
[424917592,1781271056000,-217.15233878,0.00024763,2]
[424917595,1781271056000,-151.0,0.00024763,2]
[424917591,1781271056000,-217.15233878,0.00024763,2]
[424917589,1781271056000,-240.3550645,0.00024763,2]
[424917586,1781271056000,-151.0,0.0002471,2]
[424917587,1781271056000,-718.28,0.0002476,7]
[424917584,1781271056000,-1000.0,0.00024684,2]
[424917588,1781271056000,-181.08010149,0.00024763,2]
[424917585,1781271056000,-271.37525311,0.0002471,2]
[424917612,1781271056000,-258.57120461,0.00025,2]
[424917598,1781271056000,-500.0,0.00024857,14]
[424917596,1781271056000,-271.37525321,0.00024765,2]
[424917614,1781271056000,-291.216817,0.00025,2]
[424917613,1781271056000,-291.216817,0.00025,2]
[424917615,1781271056000,-291.216817,0.00025,2]
[424917641,1781271056000,-151.0,0.00025311,2]
[424917640,1781271056000,-200.0,0.00025311,2]
[424917638,1781271056000,-225.18697532,0.00025311,2]
[424917639,1781271056000,-225.18697532,0.00025311,2]
[424917637,1781271056000,-151.94035637,0.00025311,2]
[424917634,1781271056000,-505.0,0.00025233,8]
[424917636,1781271056000,-240.3550645,0.00025311,2]
[424917635,1781271056000,-187.78006524,0.00025311,2]
[424917633,1781271056000,-2224.0,0.0002502,2]
[424917632,1781271056000,-2268.0,0.0002502,2]
[424917631,1781271056000,-2884.75459676,0.00025014,2]
[424917628,1781271056000,-476.440479,0.00025,2]
[424917642,1781271056000,-225.18697532,0.00025311,2]
[424917629,1781271056000,-476.440479,0.00025,2]
[424917616,1781271056000,-291.216814,0.00025,2]
[424917620,1781271056000,-189.0,0.00025,2]
[424917617,1781271056000,-308.0,0.00025,2]
[424917618,1781271056000,-569.21700485,0.00025,2]
[424917630,1781271056000,-476.440472,0.00025,2]
[424917624,1781271056000,-814.9981003,0.00025,2]
[424917619,1781271056000,-980.0,0.00025,2]
[424917623,1781271056000,-257.0,0.00025,2]
[424917626,1781271056000,-204.07711541,0.00025,2]
[424917627,1781271056000,-476.440479,0.00025,2]
[424917621,1781271056000,-2344.0,0.00025,2]
[424917622,1781271056000,-391.76701402,0.00025,2]
[424917625,1781271056000,-3000.0,0.00025,3]
[424917660,1781271057000,-151.91799802,0.00026027,2]
[424917658,1781271057000,-331.519573,0.000259,2]
[424917657,1781271057000,-444.89916652,0.00025893,2]
[424917661,1781271057000,-425.00166298,0.00026068,2]
[424917668,1781271057000,-5000.0,0.00026358,2]
[424917665,1781271057000,-1088.1,0.00026296,2]
[424917663,1781271057000,-1245.0,0.00026153,2]
[424917662,1781271057000,-1275.0,0.00026153,2]
[424917667,1781271057000,-5000.0,0.00026358,2]
[424917659,1781271057000,-550.0,0.00026,2]
[424917664,1781271057000,-505.0,0.00026267,9]
[424917656,1781271057000,-233.5188934,0.00025859,2]
[424917646,1781271057000,-12648.06,0.00025786,2]
[424917652,1781271057000,-151.94035637,0.00025859,2]
[424917653,1781271057000,-233.5188934,0.00025859,2]
[424917655,1781271057000,-151.0,0.00025859,2]
[424917649,1781271057000,-150.0,0.00025817,2]
[424917650,1781271057000,-194.72792766,0.00025859,2]
[424917651,1781271057000,-240.3550645,0.00025859,2]
[424917647,1781271057000,-792.01,0.00025786,2]
[424917648,1781271057000,-1229.67,0.00025786,2]
[424917644,1781271057000,-2991.49051684,0.00025562,2]
[424917645,1781271057000,-217.15233878,0.00025584,2]
[424917643,1781271057000,-150.0,0.00025373,2]
[424917671,1781271057000,-151.94035637,0.00026407,2]
[424917654,1781271057000,-233.5188934,0.00025859,2]
[424917669,1781271057000,-201.93286098,0.00026407,2]
[424917666,1781271057000,-5000.0,0.00026358,2]
[424917673,1781271057000,-242.15909246,0.00026407,2]
[424917670,1781271057000,-240.3550645,0.00026407,2]
[424917698,1781271057000,-500.0,0.00027397,2]
[424917697,1781271057000,-500.0,0.00027397,2]
[424917696,1781271057000,-500.0,0.00027397,2]
[424917692,1781271057000,-500.0,0.00027397,2]
[424917695,1781271057000,-500.0,0.00027397,2]
[424917693,1781271057000,-500.0,0.00027397,2]
[424917687,1781271057000,-2938.0,0.00026992,10]
[424917689,1781271057000,-505.0,0.000273,10]
[424917691,1781271057000,-150.0,0.00027397,2]
[424917688,1781271057000,-175.68,0.00027123,2]
[424917690,1781271057000,-151.91799802,0.00027396,2]
[424917686,1781271057000,-251.11897888,0.00026955,2]
[424917694,1781271057000,-500.0,0.00027397,2]
[424917684,1781271057000,-251.11897888,0.00026955,2]
[424917672,1781271057000,-194.10935612,0.00026407,2]
[424917685,1781271057000,-151.0,0.00026955,2]
[424917675,1781271057000,-242.15909246,0.00026407,2]
[424917674,1781271057000,-151.0,0.00026407,2]
[424917678,1781271057000,-225.18697532,0.00026953,2]
[424917677,1781271057000,-389.68,0.000269,7]
[424917681,1781271057000,-209.40437684,0.00026955,2]
[424917679,1781271057000,-599.60298507,0.00026954,2]
[424917683,1781271057000,-151.94035637,0.00026955,2]
[424917682,1781271057000,-240.3550645,0.00026955,2]
[424917680,1781271057000,-151.0,0.00026954,2]
[424917676,1781271057000,-150.0,0.00026641,2]
[424917719,1781271058000,-151.0,0.00027397,2]
[424917722,1781271058000,-155.279508,0.00027397,2]
[424917718,1781271058000,-151.0,0.00027397,2]
[424917720,1781271058000,-151.0,0.00027397,2]
[424917721,1781271058000,-151.0,0.00027397,2]
[424917725,1781271058000,-155.279508,0.00027397,2]
[424917724,1781271058000,-155.279508,0.00027397,2]
[424917729,1781271058000,-155.279508,0.00027397,2]
[424917723,1781271058000,-155.279508,0.00027397,2]
[424917728,1781271058000,-155.279508,0.00027397,2]
[424917727,1781271058000,-155.279508,0.00027397,2]
[424917730,1781271058000,-155.279508,0.00027397,2]
[424917731,1781271058000,-155.279508,0.00027397,2]
[424917732,1781271058000,-155.279508,0.00027397,2]
[424917716,1781271058000,-151.0,0.00027397,2]
[424917726,1781271058000,-155.279508,0.00027397,2]
[424917717,1781271058000,-151.0,0.00027397,2]
[424917703,1781271058000,-500.0,0.00027397,2]
[424917734,1781271058000,-155.279508,0.00027397,2]
[424917699,1781271058000,-500.0,0.00027397,2]
[424917700,1781271058000,-500.0,0.00027397,2]
[424917702,1781271058000,-500.0,0.00027397,2]
[424917701,1781271058000,-500.0,0.00027397,2]
[424917704,1781271058000,-500.0,0.00027397,2]
[424917708,1781271058000,-500.0,0.00027397,2]
[424917705,1781271058000,-500.0,0.00027397,2]
[424917706,1781271058000,-500.0,0.00027397,2]
[424917707,1781271058000,-500.0,0.00027397,2]
[424917709,1781271058000,-500.0,0.00027397,2]
[424917712,1781271058000,-150.0,0.00027397,2]
[424917711,1781271058000,-323.97630333,0.00027397,2]
[424917713,1781271058000,-1500.0,0.00027397,2]
[424917710,1781271058000,-500.0,0.00027397,2]
[424917714,1781271058000,-151.0,0.00027397,2]
[424917715,1781271058000,-151.0,0.00027397,2]
[424917733,1781271058000,-155.279508,0.00027397,2]
[424917759,1781271058000,-894.922872,0.00027397,2]
[424917739,1781271058000,-155.279508,0.00027397,2]
[424917756,1781271058000,-894.922872,0.00027397,2]
[424917758,1781271058000,-894.922872,0.00027397,2]
[424917755,1781271058000,-894.922872,0.00027397,2]
[424917757,1781271058000,-894.922872,0.00027397,2]
[424917761,1781271058000,-894.922872,0.00027397,2]
[424917762,1781271058000,-894.922864,0.00027397,2]
[424917764,1781271058000,-151.0,0.00027397,2]
[424917768,1781271058000,-151.0,0.00027397,2]
[424917769,1781271058000,-151.0,0.00027397,2]
[424917765,1781271058000,-151.0,0.00027397,2]
[424917763,1781271058000,-151.0,0.00027397,2]
[424917767,1781271058000,-151.0,0.00027397,2]
[424917766,1781271058000,-151.0,0.00027397,2]
[424917771,1781271058000,-746.478867,0.00027397,2]
[424917736,1781271058000,-155.279508,0.00027397,2]
[424917751,1781271058000,-894.922872,0.00027397,2]
[424917760,1781271058000,-894.922872,0.00027397,2]
[424917770,1781271058000,-175.076505,0.00027397,2]
[424917754,1781271058000,-894.922872,0.00027397,2]
[424917735,1781271058000,-155.279508,0.00027397,2]
[424917737,1781271058000,-155.279508,0.00027397,2]
[424917738,1781271058000,-155.279508,0.00027397,2]
[424917740,1781271058000,-155.279508,0.00027397,2]
[424917753,1781271058000,-894.922872,0.00027397,2]
[424917741,1781271058000,-155.279504,0.00027397,2]
[424917744,1781271058000,-894.922872,0.00027397,2]
[424917742,1781271058000,-300.0,0.00027397,2]
[424917743,1781271058000,-894.922872,0.00027397,2]
[424917745,1781271058000,-894.922872,0.00027397,2]
[424917747,1781271058000,-894.922872,0.00027397,2]
[424917750,1781271058000,-894.922872,0.00027397,2]
[424917748,1781271058000,-894.922872,0.00027397,2]
[424917749,1781271058000,-894.922872,0.00027397,2]
[424917752,1781271058000,-894.922872,0.00027397,2]
[424917746,1781271058000,-894.922872,0.00027397,2]
[424917793,1781271059000,-251.133488,0.00027397,2]
[424917791,1781271059000,-251.133488,0.00027397,2]
[424917790,1781271059000,-746.478868,0.00027397,2]
[424917792,1781271059000,-251.133488,0.00027397,2]
[424917795,1781271059000,-251.133488,0.00027397,2]
[424917794,1781271059000,-251.133488,0.00027397,2]
[424917803,1781271059000,-251.133488,0.00027397,2]
[424917796,1781271059000,-251.133488,0.00027397,2]
[424917798,1781271059000,-251.133488,0.00027397,2]
[424917799,1781271059000,-251.133488,0.00027397,2]
[424917800,1781271059000,-251.133488,0.00027397,2]
[424917802,1781271059000,-251.133488,0.00027397,2]
[424917788,1781271059000,-746.478867,0.00027397,2]
[424917797,1781271059000,-251.133488,0.00027397,2]
[424917789,1781271059000,-746.478867,0.00027397,2]
[424917779,1781271059000,-746.478867,0.00027397,2]
[424917782,1781271059000,-746.478867,0.00027397,2]
[424917804,1781271059000,-251.133488,0.00027397,2]
[424917772,1781271059000,-746.478867,0.00027397,2]
[424917773,1781271059000,-746.478867,0.00027397,2]
[424917774,1781271059000,-746.478867,0.00027397,2]
[424917777,1781271059000,-746.478867,0.00027397,2]
[424917778,1781271059000,-746.478867,0.00027397,2]
[424917784,1781271059000,-746.478867,0.00027397,2]
[424917776,1781271059000,-746.478867,0.00027397,2]
[424917781,1781271059000,-746.478867,0.00027397,2]
[424917787,1781271059000,-746.478867,0.00027397,2]
[424917786,1781271059000,-746.478867,0.00027397,2]
[424917780,1781271059000,-746.478867,0.00027397,2]
[424917785,1781271059000,-746.478867,0.00027397,2]
[424917783,1781271059000,-746.478867,0.00027397,2]
[424917775,1781271059000,-746.478867,0.00027397,2]
[424917805,1781271059000,-251.133488,0.00027397,2]
[424917807,1781271059000,-251.133488,0.00027397,2]
[424917838,1781271059000,-209.54390484,0.00027481,7]
[424917801,1781271059000,-251.133488,0.00027397,2]
[424917834,1781271059000,-165.3584664,0.00027467,7]
[424917837,1781271059000,-159.89605238,0.00027481,7]
[424917836,1781271059000,-175.20779124,0.00027481,7]
[424917833,1781271059000,-187.792468,0.00027467,7]
[424917835,1781271059000,-198.90380086,0.00027468,7]
[424917827,1781271059000,-164.48327716,0.00027467,7]
[424917830,1781271059000,-157.50078168,0.00027467,7]
[424917831,1781271059000,-156.0503048,0.00027467,7]
[424917829,1781271059000,-199.68649325,0.00027467,7]
[424917826,1781271059000,-194.23894185,0.00027467,7]
[424917828,1781271059000,-150.27093109,0.00027467,7]
[424917822,1781271059000,-154.84744546,0.00027467,7]
[424917823,1781271059000,-193.65929014,0.00027467,7]
[424917821,1781271059000,-166.54786132,0.00027467,7]
[424917832,1781271059000,-157.46490993,0.00027467,7]
[424917825,1781271059000,-170.44378449,0.00027467,7]
[424917824,1781271059000,-193.70324789,0.00027467,7]
[424917811,1781271059000,-4609.16,0.00027397,10]
[424917810,1781271059000,-251.133489,0.00027397,2]
[424917806,1781271059000,-251.133488,0.00027397,2]
[424917808,1781271059000,-251.133488,0.00027397,2]
[424917812,1781271059000,-1000.0,0.000274,2]
[424917813,1781271059000,-1746.03,0.000274,2]
[424917809,1781271059000,-251.133488,0.00027397,2]
[424917814,1781271059000,-2005.0,0.000274,2]
[424917816,1781271059000,-188.83055812,0.00027455,7]
[424917817,1781271059000,-156.33462644,0.00027455,7]
[424917819,1781271059000,-175.26093033,0.00027467,7]
[424917818,1781271059000,-188.47134687,0.00027467,7]
[424917820,1781271059000,-191.22616351,0.00027467,7]
[424917815,1781271059000,-170.78951663,0.00027455,7]
[424917856,1781271060000,-162.87760617,0.00027533,7]
[424917860,1781271060000,-188.89,0.0002755,2]
[424917857,1781271060000,-425.00166298,0.00027534,2]
[424917859,1781271060000,-3975.03,0.0002755,30]
[424917858,1781271060000,-1051.15302525,0.00027535,10]
[424917861,1781271060000,-306.71,0.0002755,30]
[424917864,1781271060000,-462.75,0.0002755,30]
[424917865,1781271060000,-188.89,0.0002758,7]
[424917866,1781271060000,-189.66,0.0002758,7]
[424917868,1781271060000,-304.35010862,0.00027593,7]
[424917869,1781271060000,-201.05579237,0.00027593,7]
[424917863,1781271060000,-494.32,0.0002755,30]
[424917855,1781271060000,-158.22280553,0.00027533,7]
[424917862,1781271060000,-189.66,0.0002755,2]
[424917852,1781271060000,-153.91554347,0.00027533,7]
[424917867,1781271060000,-150.0,0.00027593,2]
[424917851,1781271060000,-718.28,0.0002752,7]
[424917854,1781271060000,-169.95866966,0.00027533,7]
[424917853,1781271060000,-173.38939092,0.00027533,7]
[424917849,1781271060000,-151.0,0.00027503,2]
[424917844,1781271060000,-177.8912552,0.00027481,7]
[424917846,1781271060000,-240.3550645,0.00027503,2]
[424917845,1781271060000,-217.15233878,0.00027503,2]
[424917847,1781271060000,-151.94035637,0.00027503,2]
[424917848,1781271060000,-234.72796915,0.00027503,2]
[424917843,1781271060000,-173.86914599,0.00027481,7]
[424917842,1781271060000,-188.52630049,0.00027481,7]
[424917840,1781271060000,-153.13225055,0.00027481,7]
[424917841,1781271060000,-155.14364381,0.00027481,7]
[424917839,1781271060000,-157.9478314,0.00027481,7]
[424917850,1781271060000,-260.4103811,0.00027503,2]
[424917871,1781271060000,-235.07147559,0.00027593,7]
[424917904,1781271060000,-3975.03,0.00027872,2]
[424917873,1781271060000,-150.07165592,0.00027593,7]
[424917903,1781271060000,-189.66,0.00027855,7]
[424917870,1781271060000,-184.5634752,0.00027593,2]
[424917901,1781271060000,-189.66,0.00027824,2]
[424917898,1781271060000,-188.89,0.00027794,30]
[424917902,1781271060000,-188.89,0.00027855,7]
[424917900,1781271060000,-188.89,0.00027824,2]
[424917899,1781271060000,-189.66,0.00027794,30]
[424917896,1781271060000,-189.66,0.00027763,7]
[424917891,1781271060000,-462.75,0.00027711,7]
[424917894,1781271060000,-188.89,0.00027763,7]
[424917889,1781271060000,-306.71,0.00027711,7]
[424917893,1781271060000,-189.66,0.00027733,2]
[424917895,1781271060000,-151.0,0.00027763,2]
[424917892,1781271060000,-188.89,0.00027733,2]
[424917890,1781271060000,-494.32,0.00027711,7]
[424917897,1781271060000,-150.0,0.00027789,2]
[424917887,1781271060000,-396.509669,0.00027704,7]
[424917875,1781271060000,-178.6656519,0.00027593,5]
[424917874,1781271060000,-190.60658501,0.00027593,7]
[424917888,1781271060000,-3975.03,0.00027711,7]
[424917876,1781271060000,-276.36232787,0.00027593,7]
[424917877,1781271060000,-188.35450804,0.00027593,7]
[424917879,1781271060000,-188.89,0.00027611,30]
[424917878,1781271060000,-173.79219887,0.00027593,7]
[424917872,1781271060000,-178.89500858,0.00027593,7]
[424917881,1781271060000,-188.89,0.00027641,2]
[424917882,1781271060000,-189.66,0.00027641,2]
[424917880,1781271060000,-189.66,0.00027611,30]
[424917883,1781271060000,-188.89,0.00027672,7]
[424917886,1781271060000,-189.66,0.00027702,30]
[424917885,1781271060000,-188.89,0.00027702,30]